bitfinex-derivatives/quotes_SOLF0:USTF0_20250507
["timestamp","ask_amount","ask_price","bid_price","bid_amount"]
[1746586970434,6.8231,146.57,146.54,6.8241]
[1746586972835,6.8235,146.56,146.54,6.8241]
[1746586978237,6.8235,146.56,146.53,6.8246]
[1746586978538,6.8235,146.56,146.52,29.14]
[1746586978738,6.8235,146.56,146.53,6.8245]
[1746586979338,6.8235,146.56,146.54,6.8243]
[1746586980641,6.8232,146.57,146.55,6.8239]
[1746586980837,6.8232,146.57,146.52,29.14]
[1746586981336,6.8232,146.57,146.54,6.8239]
[1746586981841,6.8232,146.57,146.55,6.8239]
[1746586982142,2.1399,146.59,146.52,29.14]
[1746586982341,52.76663222,146.6,146.52,29.14]
[1746586982738,6.8223,146.59,146.52,29.14]
[1746586983641,6.8223,146.59,146.56,6.823]
[1746586984246,59.58843222,146.6,146.57,6.8229]
[1746586984434,30.44843222,146.6,146.57,6.8229]
[1746586984639,23.62663222,146.6,146.57,6.8226]
[1746586985542,6.8217,146.6,146.57,6.8226]
[1746586988550,6.8221,146.59,146.56,35.9633]
[1746586989350,6.8218,146.6,146.57,6.8228]
[1746586989653,33.2784,146.62,146.56,29.14]
[1746586989853,62.4184,146.62,146.56,29.14]
[1746586990049,33.2784,146.62,146.56,29.14]
[1746586990247,58.28,146.62,146.58,6.8224]
[1746586990443,29.14,146.62,146.58,6.8224]
[1746586990850,29.14,146.62,146.56,29.14]
[1746586991149,23.62663222,146.64,146.56,29.14]
[1746586991356,23.62663222,146.64,146.62,6.8206]
[1746586991647,157.90460754,146.68,146.63,7.31285293]
[1746586992043,266.81596465,146.73,146.66,7.31285293]
[1746586992044,264.81476465,146.73,146.66,7.31285293]
[1746586992254,150.96973961,146.69,146.67,29.14]
[1746586992457,150.96973961,146.69,146.68,6.8179]
[1746586992656,117.76793961,146.69,146.68,6.8179]
[1746586992960,107.05713961,146.69,146.68,6.8179]
[1746586993463,264.81476465,146.73,146.69,6.8174]
[1746586993670,4.0386,146.77,146.67,29.14]
[1746586994352,10.8523,146.77,146.67,29.14]
[1746586994557,10.8523,146.77,146.68,7.31285293]
[1746586994960,6.8141,146.76,146.68,7.31285293]
[1746586995161,6.8141,146.76,146.67,29.14]
[1746586995963,6.8146,146.75,146.71,6.8161]
[1746586996160,6.8146,146.75,146.71,29.12]
[1746586996963,6.8146,146.75,146.72,6.8159]
[1746586997463,4.0386,146.77,146.71,29.12]
[1746586997763,4.0386,146.77,146.71,35.9363]
[1746586998160,11.35145293,146.77,146.71,29.12]
[1746586998565,6.8157,146.73,146.71,29.12]
[1746586999866,6.8157,146.73,146.7,6.8169]
[1746587001267,35.9352,146.74,146.7,6.8169]
[1746587002768,29.12,146.74,146.69,29.12]
[1746587003467,6.8157,146.73,146.69,35.937]
[1746587003667,29.12,146.74,146.69,29.12]
[1746587004864,11.35145293,146.77,146.69,29.12]
[1746587005069,29.12,146.76,146.69,29.12]
[1746587005569,6.8168,146.71,146.69,29.12]
[1746587006070,6.8163,146.72,146.69,35.9374]
[1746587006269,29.12,146.76,146.69,29.12]
[1746587006565,29.1,146.75,146.66,6.8186]
[1746587006759,7.31285293,146.71,146.6,589.62]
[1746587006965,35.5383,146.7,146.61,29.1]
[1746587007868,6.8193,146.65,146.62,6.8205]
[1746587010168,6.8193,146.65,146.61,35.9209]
[1746587010766,6.8197,146.64,146.61,35.9209]
[1746587011569,6.8204,146.63,146.61,29.1]
[1746587011772,35.5383,146.7,146.61,29.1]
[1746587011773,29.12,146.66,146.61,29.1]
[1746587012069,7.31285293,146.68,146.58,29.1]
[1746587012070,6.8216,146.6,146.58,29.1]
[1746587012261,29.12,146.65,146.58,29.1]
[1746587012459,2.1415,146.64,146.58,29.1]
[1746587012764,6.8212,146.61,146.58,35.9225]
[1746587013472,6.8212,146.61,146.58,29.1]
[1746587013971,2.1415,146.64,146.58,29.1]
[1746587014172,2.1222,146.63,146.58,29.1]
[1746587014973,6.8218,146.6,146.58,29.1]
[1746587017275,6.8211,146.61,146.58,35.9224]
[1746587019072,6.8211,146.61,146.58,29.1]
[1746587019278,6.8217,146.6,146.58,29.1]
[1746587020674,6.822,146.59,146.58,29.1]
[1746587020875,2.1222,146.63,146.58,29.1]
[1746587021376,6.8214,146.61,146.58,29.1]
[1746587022077,6.8216,146.6,146.58,29.1]
[1746587022980,6.8213,146.61,146.58,35.9225]
[1746587023180,2.1222,146.63,146.58,29.1]
[1746587023474,6.8216,146.6,146.58,29.1]
[1746587024281,6.8213,146.61,146.58,35.9225]
[1746587024478,2.1415,146.64,146.58,29.1]
[1746587024672,6.8204,146.63,146.59,6.8218]
[1746587024874,6.8204,146.63,146.58,29.1]
[1746587025075,2.1415,146.64,146.58,29.1]
[1746587025376,6.8209,146.62,146.59,6.8218]
[1746587027777,6.8209,146.62,146.58,29.1]
[1746587027778,6.8212,146.61,146.58,35.9224]
[1746587027985,2.1415,146.64,146.58,35.9224]
[1746587028178,6.8213,146.61,146.58,35.9224]
[1746587030386,6.8208,146.62,146.59,6.822]
[1746587030576,2.1415,146.64,146.58,29.1]
[1746587031989,6.822,146.59,146.58,29.1]
[1746587033585,6.8218,146.6,146.58,29.1]
[1746587033784,29.12,146.61,146.58,29.1]
[1746587034183,31.2615,146.64,146.58,29.1]
[1746587034585,6.8204,146.63,146.6,6.8216]
[1746587034786,2.1415,146.64,146.58,29.1]
[1746587034982,2.0408,146.66,146.58,58.22]
[1746587035182,8.86,146.66,146.63,6.8199]
[1746587035787,6.8193,146.65,146.62,6.8205]
[1746587037383,6.819,146.66,146.63,6.82]
[1746587038189,6.8193,146.65,146.62,35.9404]
[1746587038489,29.12,146.68,146.62,29.12]
[1746587038787,29.12,146.68,146.62,35.9406]
[1746587039389,35.9387,146.67,146.64,6.8196]
[1746587039989,6.8189,146.66,146.63,6.82]
[1746587041089,6.8193,146.65,146.62,35.9405]
[1746587041289,29.12,146.68,146.62,29.12]
[1746587041684,31.1137,146.7,146.62,58.24]
[1746587041889,4.3318,146.71,146.63,7.31285293]
[1746587042083,31.2943,146.71,146.63,7.31285293]
[1746587042280,58.24,146.73,146.63,7.31285293]
[1746587042485,31.2109,146.76,146.63,7.31285293]
[1746587042686,6.8165,146.71,146.68,6.8176]
[1746587042886,6.8165,146.71,146.68,35.9376]
[1746587043595,6.8162,146.72,146.69,6.8174]
[1746587043886,6.8162,146.72,146.68,29.12]
[1746587044086,29.12,146.75,146.68,29.12]
[1746587044291,29.12,146.75,146.68,35.9377]
[1746587044593,31.2109,146.76,146.68,29.12]
[1746587044888,31.2109,146.76,146.69,6.8171]
[1746587044889,6.8158,146.73,146.69,6.8171]
[1746587045096,31.2109,146.76,146.68,29.12]
[1746587045288,2.0909,146.76,146.68,29.12]
[1746587045790,6.8149,146.75,146.71,6.816]
[1746587045987,6.8149,146.75,146.72,29.12]
[1746587046186,2.0909,146.76,146.72,29.12]
[1746587046383,6.815,146.75,146.72,29.12]
[1746587047492,6.8154,146.74,146.72,29.12]
[1746587048297,6.8148,146.75,146.72,29.12]
[1746587049092,6.8154,146.74,146.72,29.12]
[1746587049291,269.50716289,146.78,146.72,29.12]
[1746587050189,6.815,146.75,146.72,29.12]
[1746587050390,269.48716289,146.78,146.72,29.12]
[1746587051298,6.8149,146.75,146.72,35.9359]
[1746587052598,6.8149,146.75,146.73,6.8154]
[1746587052809,6.8143,146.76,146.72,29.12]
[1746587053196,6.8143,146.76,146.73,6.8153]
[1746587053401,269.48716289,146.78,146.72,29.12]
[1746587054502,6.8152,146.74,146.72,29.12]
[1746587055295,6.8148,146.75,146.72,29.12]
[1746587056599,269.48716289,146.78,146.72,29.12]
[1746587056903,269.48716289,146.78,146.72,35.9357]
[1746587057401,6.8146,146.75,146.72,35.9357]
[1746587057901,6.8146,146.75,146.73,6.8155]
[1746587058299,6.8144,146.76,146.73,6.8155]
[1746587059105,6.8147,146.75,146.73,6.8155]
[1746587060303,6.8144,146.76,146.73,6.8155]
[1746587063908,6.8147,146.75,146.73,6.8155]
[1746587064110,6.8147,146.75,146.72,35.9358]
[1746587065309,269.48716289,146.78,146.72,35.9358]
[1746587066310,6.8149,146.75,146.72,35.9358]
[1746587066610,269.48716289,146.78,146.72,35.9358]
[1746587066812,6.815,146.75,146.72,35.9358]
[1746587071918,6.8151,146.74,146.72,35.9358]
[1746587075619,6.8148,146.75,146.72,35.9358]
[1746587076118,6.8151,146.74,146.72,35.9358]
[1746587077016,6.8148,146.75,146.72,35.9358]
[1746587077622,6.8148,146.75,146.73,6.8155]
[1746587077916,29.1,146.77,146.73,6.8155]
[1746587078220,6.8143,146.76,146.73,6.8155]
[1746587078413,29.1,146.77,146.73,6.8155]
[1746587079119,6.8142,146.76,146.73,6.8155]
[1746587079424,29.1,146.77,146.73,6.8155]
[1746587079721,6.8144,146.76,146.73,6.8155]
[1746587080022,6.8144,146.76,146.74,6.815]
[1746587080622,6.8144,146.76,146.73,6.8153]
[1746587081222,6.8146,146.75,146.73,6.8153]
[1746587081616,29.1,146.8,146.74,6.8149]
[1746587081822,29.1,146.79,146.72,29.12]
[1746587082120,29.1,146.79,146.73,6.8152]
[1746587082323,6.815,146.75,146.72,29.12]
[1746587082526,65.49285293,146.79,146.72,29.12]
[1746587083126,6.8155,146.73,146.72,29.12]
[1746587083528,6.8155,146.73,146.7,6.8169]
[1746587084429,6.8161,146.72,146.7,6.8169]
[1746587087733,6.8167,146.71,146.69,29.08]
[1746587088537,6.8167,146.71,146.69,35.8974]
[1746587089138,6.8169,146.7,146.69,29.08]
[1746587091235,29.08,146.71,146.66,29.08]
[1746587091738,6.8183,146.67,146.65,6.819]
[1746587092836,6.818,146.68,146.65,6.819]
[1746587095441,58.16,146.71,146.63,29.08]
[1746587095936,7.31285293,146.7,146.63,29.08]
[1746587096139,6.8197,146.64,146.63,29.08]
[1746587096342,29.1,146.66,146.6,37.1083178]
[1746587096740,29.1,146.66,146.6,43.9296178]
[1746587097144,29.1,146.66,146.6,35.9013]
[1746587097440,6.82,146.64,146.61,6.8211]
[1746587099540,6.8202,146.63,146.6,35.9014]
[1746587100342,29.1,146.66,146.6,29.08]
[1746587101643,6.8196,146.65,146.6,29.08]
[1746587102841,6.8196,146.65,146.62,6.8203]
[1746587103247,35.9189,146.66,146.6,29.08]
[1746587103439,31.1842,146.68,146.61,7.31285293]
[1746587103746,6.8166,146.71,146.68,6.8178]
[1746587104046,6.8166,146.71,146.64,7.31285293]
[1746587104047,2.146,146.72,146.65,29.1]
[1746587104546,2.146,146.72,146.68,6.8175]
[1746587105044,2.146,146.72,146.67,6.8181]
[1746587105646,6.8167,146.71,146.67,6.8181]
[1746587106241,8.9622,146.72,146.65,29.1]
[1746587106447,29.1,146.73,146.66,29.1]
[1746587106743,6.8153,146.74,146.71,6.8164]
[1746587107350,6.8155,146.73,146.7,6.8167]
[1746587107645,35.4907,146.76,146.69,29.1]
[1746587108247,6.8148,146.75,146.72,6.8159]
[1746587108950,8.9761,146.76,146.73,6.8154]
[1746587109446,8.9761,146.76,146.72,6.8158]
[1746587110352,8.9761,146.76,146.73,6.8155]
[1746587110548,6.8146,146.75,146.7,29.1]
[1746587111050,2.1619,146.76,146.7,36.41285293]
[1746587111852,29.08,146.8,146.7,36.41285293]
[1746587112257,8.9656,146.81,146.73,7.31285293]
[1746587112454,8.9656,146.81,146.74,58.18]
[1746587112753,8.9656,146.81,146.77,6.8133]
[1746587113752,8.9656,146.81,146.78,6.8131]
[1746587113953,8.9656,146.81,146.74,58.18]
[1746587114452,8.9656,146.81,146.77,6.8134]
[1746587114755,247.06118055,146.82,146.79,6.8127]
[1746587114950,240.24968055,146.82,146.79,29.08]
[1746587115453,240.24968055,146.82,146.8,6.8123]
[1746587115649,240.24968055,146.82,146.79,29.08]
[1746587116050,6.8123,146.8,146.79,29.08]
[1746587116256,240.24968055,146.82,146.79,29.08]
[1746587116954,6.8122,146.81,146.79,29.08]
[1746587117152,240.24968055,146.82,146.79,29.08]
[1746587117455,6.8123,146.8,146.79,29.08]
[1746587118655,269.32968055,146.82,146.75,29.06]
[1746587119156,6.814,146.77,146.75,29.06]
[1746587119554,269.32968055,146.82,146.75,29.06]
[1746587120858,6.8135,146.78,146.75,35.8746]
[1746587124561,6.8137,146.77,146.75,29.06]
[1746587131258,6.8137,146.77,146.75,35.8746]
[1746587131455,6.8137,146.77,146.75,29.06]
[1746587132561,6.8141,146.76,146.75,29.06]
[1746587132749,29.06,146.78,146.72,29.06]
[1746587132953,31.1631,146.77,146.72,29.06]
[1746587133159,6.8153,146.74,146.72,29.06]
[1746587134356,29.06,146.77,146.72,29.06]
[1746587134560,2.1031,146.81,146.73,29.06]
[1746587134763,8.9152,146.81,146.78,6.8132]
[1746587134956,8.9152,146.81,146.76,29.06]
[1746587135262,2.1031,146.81,146.76,29.06]
[1746587135560,6.8123,146.8,146.77,6.8133]
[1746587135762,6.8123,146.8,146.76,29.06]
[1746587136063,8.9151,146.81,146.78,6.8132]
[1746587137565,2.1031,146.81,146.79,6.8127]
[1746587138163,8.9149,146.81,146.78,6.813]
[1746587140963,6.8123,146.8,146.78,6.813]
[1746587141663,8.9151,146.81,146.78,6.813]
[1746587146168,240.24968055,146.82,146.76,29.06]
[1746587146366,240.24968055,146.82,146.77,36.37285293]
[1746587146572,240.24968055,146.82,146.81,6.8118]
[1746587147066,240.24968055,146.82,146.8,35.8521]
[1746587147272,240.24968055,146.82,146.8,29.04]
[1746587147759,240.24968055,146.82,146.81,6.8118]
[1746587147965,6.8102,146.85,146.8,29.04]
[1746587148473,6.8102,146.85,146.82,6.8111]
[1746587149369,6.8097,146.86,146.83,6.8109]
[1746587149770,6.8097,146.86,146.8,36.35285293]
[1746587149771,29.06,146.87,146.8,36.35285293]
[1746587150071,6.8103,146.85,146.82,6.8112]
[1746587150270,29.06,146.87,146.8,36.35285293]
[1746587150667,6.8108,146.84,146.8,35.8519]
[1746587150871,29.06,146.87,146.8,29.04]
[1746587151074,36.37285293,146.87,146.8,29.04]
[1746587151270,6.8118,146.81,146.8,29.04]
[1746587151572,29.06,146.85,146.8,29.04]
[1746587151767,6.8117,146.82,146.8,29.04]
[1746587152068,29.06,146.85,146.8,29.04]
[1746587152268,6.8118,146.81,146.8,29.04]
[1746587157874,6.8129,146.79,146.77,35.8535]
[1746587158174,2.1488,146.83,146.77,35.8535]
[1746587158566,6.8126,146.8,146.77,35.8535]
[1746587158766,2.1488,146.83,146.77,35.8535]
[1746587158963,2.1488,146.83,146.77,29.04]
[1746587159471,6.813,146.79,146.77,29.04]
[1746587159671,2.1488,146.83,146.77,35.8536]
[1746587159870,2.1488,146.83,146.77,29.04]
[1746587160071,6.813,146.79,146.77,29.04]
[1746587160371,6.813,146.79,146.77,35.8536]
[1746587160574,6.8132,146.78,146.77,29.04]
[1746587160769,6.8132,146.78,146.75,6.8143]
[1746587160970,29.04,146.81,146.74,29.04]
[1746587161472,29.04,146.81,146.74,35.8551]
[1746587161669,6.8139,146.77,146.74,35.8551]
[1746587162272,6.8133,146.78,146.75,6.8146]
[1746587162474,29.04,146.8,146.74,29.04]
[1746587162867,6.8128,146.79,146.77,6.8136]
[1746587163974,35.8525,146.8,146.77,6.8136]
[1746587164169,31.1888,146.83,146.75,7.31285293]
[1746587164375,31.1888,146.83,146.75,36.35285293]
[1746587164580,31.1888,146.83,146.8,6.8122]
[1746587165473,38.0001,146.83,146.8,6.8122]
[1746587165676,8.9601,146.83,146.8,6.8122]
[1746587165871,2.1488,146.83,146.8,6.8122]
[1746587166976,1.9792,146.84,146.81,6.8117]
[1746587167371,6.8112,146.83,146.78,36.35285293]
[1746587168173,6.8112,146.83,146.8,6.812]
[1746587168379,1.9792,146.84,146.78,29.04]
[1746587168575,6.1287,146.84,146.78,29.04]
[1746587168776,6.8127,146.79,146.78,29.04]
[1746587169483,6.8124,146.8,146.78,29.04]
[1746587169680,29.04,146.81,146.78,29.04]
[1746587170084,35.8521,146.81,146.78,35.853]
[1746587170780,35.8521,146.81,146.79,6.8127]
[1746587171690,29.04,146.81,146.8,6.8123]
[1746587171976,31.0192,146.84,146.78,29.04]
[1746587172176,6.8102,146.85,146.82,6.8113]
[1746587172384,58.08,146.87,146.78,29.04]
[1746587172682,6.8107,146.84,146.78,29.04]
[1746587173081,58.08,146.87,146.78,29.04]
[1746587173582,65.39285293,146.87,146.78,29.04]
[1746587173783,6.8121,146.81,146.78,29.04]
[1746587174385,6.8116,146.82,146.79,6.8127]
[1746587175290,35.851,146.83,146.8,6.8122]
[1746587178389,35.851,146.83,146.81,6.8117]
[1746587178588,29.04,146.83,146.81,6.8117]
[1746587178788,29.04,146.87,146.78,29.04]
[1746587179193,6.8102,146.85,146.82,6.8111]
[1746587180890,6.8105,146.84,146.81,6.8116]
[1746587183591,6.8105,146.84,146.82,6.8113]
[1746587184386,6.8105,146.84,146.81,6.8116]
[1746587185489,6.811,146.83,146.81,6.8116]
[1746587186393,6.8107,146.84,146.81,6.8116]
[1746587187091,6.811,146.83,146.81,6.8116]
[1746587188493,6.8106,146.84,146.81,6.8116]
[1746587192493,6.811,146.83,146.81,6.8116]
[1746587194101,6.8108,146.84,146.81,6.8116]
[1746587197802,6.8109,146.83,146.81,6.8116]
[1746587199004,6.8106,146.84,146.81,6.8116]
[1746587199204,6.8106,146.84,146.82,6.8112]
[1746587200804,6.8106,146.84,146.81,35.8316]
[1746587200999,6.8101,146.85,146.81,29.02]
[1746587201206,29.02,146.87,146.81,29.02]
[1746587201405,29.02,146.87,146.82,6.8111]
[1746587201607,6.8103,146.85,146.82,6.8111]
[1746587201807,29.02,146.87,146.82,6.8111]
[1746587202407,6.8107,146.84,146.81,35.8316]
[1746587202806,6.8107,146.84,146.81,29.02]
[1746587203003,6.8107,146.84,146.81,35.8316]
[1746587205302,269.13418438,146.91,146.81,29.02]
[1746587205505,2.0794,146.89,146.81,65.34445098]
[1746587205706,6.8091,146.87,146.84,6.81]
[1746587206108,2.0794,146.89,146.81,65.34445098]
[1746587206410,6.8088,146.88,146.85,6.8097]
[1746587207208,6.8088,146.88,146.86,6.8094]
[1746587207509,8.8878,146.89,146.85,29.02]
[1746587207711,2.0794,146.89,146.85,35.8297]
[1746587207911,6.8088,146.88,146.85,35.8297]
[1746587209505,6.8088,146.88,146.86,6.8094]
[1746587209804,6.8088,146.88,146.85,29.02]
[1746587210010,2.0794,146.89,146.85,29.02]
[1746587210402,2.0794,146.89,146.82,29.02]
[1746587211116,6.8091,146.87,146.82,29.02]
[1746587213111,6.8091,146.87,146.84,6.8101]
[1746587215116,8.8877,146.89,146.86,6.8092]
[1746587215313,2.0794,146.89,146.82,29.02]
[1746587216014,6.8089,146.88,146.82,29.02]
[1746587216711,6.8089,146.88,146.85,6.8096]
[1746587217416,2.0794,146.89,146.84,6.8102]
[1746587217810,2.0794,146.89,146.82,29.02]
[1746587218012,6.8097,146.86,146.83,6.8105]
[1746587218214,6.8097,146.86,146.82,29.02]
[1746587219118,6.8097,146.86,146.83,6.8106]
[1746587220319,6.81,146.85,146.83,6.8106]
[1746587220520,6.81,146.85,146.82,35.8312]
[1746587221818,6.8105,146.84,146.82,35.8312]
[1746587222320,2.0794,146.89,146.83,29.0]
[1746587223315,2.0794,146.89,146.82,58.02]
[1746587223618,6.8099,146.86,146.83,6.8106]
[1746587223919,6.8099,146.86,146.82,58.02]
[1746587224218,6.8099,146.86,146.82,29.02]
[1746587225019,6.8099,146.86,146.84,6.8104]
[1746587225222,6.8091,146.87,146.82,29.02]
[1746587225521,31.0794,146.89,146.82,36.32445098]
[1746587225819,37.888,146.89,146.82,36.32445098]
[1746587226119,31.0794,146.89,146.86,6.8094]
[1746587226920,37.8876,146.89,146.86,6.8094]
[1746587227322,31.0794,146.89,146.87,6.8088]
[1746587227521,2.0794,146.89,146.87,6.8088]
[1746587228719,8.8875,146.89,146.87,6.8088]
[1746587229823,2.0794,146.89,146.87,6.8088]
[1746587230428,8.8875,146.89,146.87,6.8088]
[1746587232724,2.0794,146.89,146.87,6.8088]
[1746587233430,6.8074,146.91,146.87,6.8088]
[1746587233623,6.8074,146.91,146.86,29.0]
[1746587233824,6.8077,146.9,146.86,29.0]
[1746587234528,6.8077,146.9,146.87,6.8087]
[1746587234725,6.8077,146.9,146.86,29.0]
[1746587236131,6.8074,146.91,146.88,6.8084]
[1746587237526,29.0,146.92,146.86,29.0]
[1746587238230,6.8088,146.88,146.86,35.8092]
[1746587239527,6.8083,146.89,146.86,35.8092]
[1746587240432,6.8078,146.9,146.86,29.0]
[1746587240730,29.0,146.92,146.86,29.0]
[1746587241329,36.30716516,146.92,146.83,29.0]
[1746587241833,6.8095,146.87,146.84,6.8102]
[1746587242026,29.0,146.88,146.84,6.8102]
[1746587242229,29.0,146.88,146.83,29.0]
[1746587242522,6.8098,146.86,146.83,35.8107]
[1746587243234,2.1489,146.87,146.8,625.4683178]
[1746587243430,2.1489,146.87,146.8,37.0283178]
[1746587243629,2.1489,146.87,146.81,6.8114]
[1746587244128,2.1489,146.87,146.8,37.0283178]
[1746587244336,2.1489,146.87,146.82,6.8113]
[1746587244835,6.8105,146.84,146.81,6.8116]
[1746587245235,29.0,146.84,146.81,6.8116]
[1746587245830,35.8107,146.84,146.81,6.8116]
[1746587247235,29.0,146.84,146.82,6.8112]
[1746587247433,2.1489,146.87,146.81,7.30716516]
[1746587247730,6.8097,146.86,146.83,6.8108]
[1746587248237,31.1711,146.88,146.83,6.8108]
[1746587248437,6.8097,146.86,146.83,6.8108]
[1746587249333,2.1711,146.88,146.81,29.0]
[1746587249833,6.8091,146.87,146.84,6.8101]
[1746587254040,6.8091,146.87,146.81,29.0]
[1746587254541,6.8091,146.87,146.84,6.8101]
[1746587259442,2.1711,146.88,146.83,29.0]
[1746587260046,6.8102,146.85,146.83,29.0]
[1746587261250,6.8102,146.85,146.83,35.8108]
[1746587262947,2.1711,146.88,146.8,29.0]
[1746587263551,6.8112,146.83,146.8,35.812]
[1746587264351,6.8112,146.83,146.81,6.8118]
[1746587266953,6.8112,146.83,146.8,35.8121]
[1746587267352,6.8112,146.83,146.8,29.0]
[1746587269153,6.8112,146.83,146.8,35.8121]
[1746587269354,6.8112,146.83,146.8,29.0]
[1746587270955,6.8112,146.83,146.81,6.8118]
[1746587275257,6.8106,146.84,146.81,6.8118]
[1746587275453,6.8106,146.84,146.82,6.8113]
[1746587278760,6.811,146.83,146.81,11.48853375]
[1746587281259,6.811,146.83,146.81,6.8116]
[1746587283462,6.8107,146.84,146.8,33.67693375]
[1746587283663,29.0,146.86,146.8,33.67693375]
[1746587284360,29.0,146.86,146.8,29.0]
[1746587284564,29.0,146.86,146.81,6.8118]
[1746587284763,29.0,146.86,146.81,4.67693375]
[1746587285262,6.8103,146.85,146.82,6.8111]
[1746587286467,2.1711,146.88,146.83,4.67693375]
[1746587286965,6.8093,146.87,146.84,6.8102]
[1746587287167,6.8093,146.87,146.83,4.67693375]
[1746587287564,6.8093,146.87,146.84,35.8101]
[1746587290767,6.8096,146.86,146.84,35.8101]
[1746587290967,6.8096,146.86,146.84,29.0]
[1746587292266,6.8096,146.86,146.84,35.8103]
[1746587292671,6.8096,146.86,146.84,29.0]
[1746587294075,6.8096,146.86,146.84,35.8104]
[1746587294270,6.8096,146.86,146.84,29.0]
[1746587295275,6.8096,146.86,146.84,35.8104]
[1746587295870,33.65693375,146.89,146.84,29.0]
[1746587295871,6.81,146.85,146.84,29.0]
[1746587297174,6.81,146.85,146.83,11.48773375]
[1746587297675,4.67693375,146.87,146.81,28.98]
[1746587297874,1.9925,146.86,146.81,28.98]
[1746587298279,6.8111,146.83,146.81,35.7917]
[1746587298572,1.9925,146.86,146.81,28.98]
[1746587300079,6.8114,146.82,146.81,28.98]
[1746587300275,33.65693375,146.85,146.78,28.98]
[1746587300481,4.67693375,146.83,146.78,28.98]
[1746587300682,6.8127,146.79,146.78,28.98]
[1746587301480,6.8127,146.79,146.77,4.67693375]
[1746587301675,6.8132,146.78,146.75,228.89745094]
[1746587302281,6.8132,146.78,146.76,6.8141]
[1746587302579,6.813,146.79,146.76,6.8141]
[1746587302774,28.98,146.81,146.76,6.8141]
[1746587303179,6.813,146.79,146.76,6.8141]
[1746587305086,6.8133,146.78,146.76,6.8141]
[1746587308186,6.813,146.79,146.77,6.8136]
[1746587310290,6.8124,146.8,146.77,6.8136]
[1746587310485,4.2487,146.85,146.75,189.96977973]
[1746587310486,28.98,146.82,146.78,6.813]
[1746587310787,6.8119,146.81,146.78,6.813]
[1746587311685,6.8123,146.8,146.78,6.813]
[1746587311986,28.98,146.82,146.79,6.8127]
[1746587312182,35.7916,146.82,146.79,6.8127]
[1746587312788,6.8119,146.81,146.78,6.8129]
[1746587314089,28.98,146.82,146.75,189.96977973]
[1746587314292,2.139,146.81,146.75,189.96977973]
[1746587314790,2.139,146.81,146.75,196.78407973]
[1746587315290,6.8136,146.78,146.75,196.78407973]
[1746587315788,2.139,146.81,146.75,196.78407973]
[1746587316590,6.8141,146.76,146.75,189.96977973]
[1746587316789,6.8141,146.76,146.75,28.98]
[1746587317695,6.8138,146.77,146.75,28.98]
[1746587318589,6.8141,146.76,146.75,28.98]
[1746587318792,28.98,146.78,146.75,28.98]
[1746587319698,28.98,146.78,146.72,28.98]
[1746587319990,57.96,146.78,146.72,28.98]
[1746587320193,57.96,146.78,146.72,35.7958]
[1746587320393,57.96,146.78,146.72,28.98]
[1746587320694,6.8144,146.76,146.74,6.8149]